bitfinex-derivatives/quotes_BTCF0:USTF0_20250528
["timestamp","ask_amount","ask_price","bid_price","bid_amount"]
[1748390612273,0.44606121,108920.0,108910.0,1.00364391]
[1748390612775,0.44606121,108920.0,108910.0,1.00364375]
[1748390613588,0.44606121,108920.0,108910.0,1.00364378]
[1748390613884,0.80686121,108920.0,108910.0,0.36965158]
[1748390614089,1.11686121,108920.0,108910.0,0.422018]
[1748390614287,1.11686121,108920.0,108910.0,0.2383458]
[1748390614485,1.11686121,108920.0,108910.0,0.421898]
[1748390614690,1.11686121,108920.0,108910.0,0.422018]
[1748390614985,1.11686121,108920.0,108910.0,0.42189931]
[1748390615190,1.11686121,108920.0,108910.0,0.42201929]
[1748390615683,1.11686121,108920.0,108910.0,0.42201915]
[1748390616585,0.90686121,108920.0,108910.0,0.42201869]
[1748390617291,0.90686121,108920.0,108910.0,0.4220188]
[1748390618488,0.90686121,108920.0,108910.0,0.42201866]
[1748390618886,0.90686121,108920.0,108910.0,0.32449866]
[1748390619077,0.44606121,108920.0,108910.0,0.32449868]
[1748390619279,0.50606121,108920.0,108910.0,0.37179158]
[1748390619483,0.86686121,108920.0,108910.0,0.37179158]
[1748390619786,0.86686121,108920.0,108910.0,0.37179148]
[1748390620085,0.82762751,108920.0,108910.0,0.46532704]
[1748390620290,0.86625293,108920.0,108910.0,0.51921418]
[1748390620679,0.86625293,108920.0,108910.0,0.50486985]
[1748390620887,0.86625293,108920.0,108910.0,0.51921418]
[1748390622304,0.86625293,108920.0,108910.0,0.50486985]
[1748390622592,0.86625293,108920.0,108910.0,0.51921416]
[1748390622892,0.86625293,108920.0,108910.0,0.3717913]
[1748390623086,0.86625293,108920.0,108910.0,0.42567844]
[1748390623289,0.86625293,108920.0,108910.0,0.51921416]
[1748390623492,0.86625293,108920.0,108910.0,0.51921422]
[1748390623693,0.86625293,108920.0,108910.0,0.37179136]
[1748390624396,0.50545293,108920.0,108910.0,0.21675595]
[1748390624594,0.44546454,108920.0,108910.0,0.64064039]
[1748390624795,0.47546454,108920.0,108910.0,0.68174039]
[1748390624994,0.47546454,108920.0,108910.0,0.68174007]
[1748390625187,0.47546454,108920.0,108910.0,0.68622216]
[1748390625788,0.47546454,108920.0,108910.0,0.68622217]
[1748390626491,0.47546454,108920.0,108910.0,0.38622217]
[1748390627298,0.47546454,108920.0,108910.0,0.38622218]
[1748390627497,0.47546454,108920.0,108910.0,0.38622216]
[1748390628899,0.47546454,108920.0,108910.0,0.3862241]
[1748390629100,0.47546454,108920.0,108910.0,0.37188006]
[1748390629304,0.47546454,108920.0,108910.0,0.3862241]
[1748390629904,0.47546745,108920.0,108910.0,0.38622526]
[1748390630796,0.47546745,108920.0,108910.0,0.38622528]
[1748390631703,0.47546745,108920.0,108910.0,0.37692527]
[1748390632204,0.47546745,108920.0,108910.0,0.38622527]
[1748390633090,0.42080476,108920.0,108910.0,0.36258122]
[1748390633308,0.43682751,108920.0,108910.0,0.76504527]
[1748390633492,0.47546896,108920.0,108910.0,0.76504527]
[1748390633807,0.47546896,108920.0,108910.0,0.76516531]
[1748390635205,0.47546896,108920.0,108910.0,0.76516532]
[1748390635503,0.47546896,108920.0,108910.0,0.8587519]
[1748390636299,0.47546896,108920.0,108910.0,0.85875188]
[1748390637404,0.47546896,108920.0,108910.0,0.85875189]
[1748390637592,0.47546896,108920.0,108910.0,0.89115189]
[1748390637799,0.4754602,108920.0,108910.0,0.94501154]
[1748390638195,0.4754602,108920.0,108910.0,0.89115189]
[1748390639003,0.4754602,108920.0,108910.0,0.8768078]
[1748390639405,0.4754602,108920.0,108910.0,0.94501364]
[1748390639999,0.4754602,108920.0,108910.0,0.94502133]
[1748390640407,0.4754602,108920.0,108910.0,0.93067724]
[1748390640705,0.4754602,108920.0,108910.0,0.74368586]
[1748390641109,0.47545672,108920.0,108910.0,0.74368586]
[1748390641300,0.47545672,108920.0,108910.0,0.797573]
[1748390641804,0.47545672,108920.0,108910.0,0.78322891]
[1748390642309,0.47545672,108920.0,108910.0,0.797573]
[1748390642495,0.47545672,108920.0,108910.0,0.69638511]
[1748390642901,0.47545672,108920.0,108910.0,0.75027225]
[1748390643108,0.47545672,108920.0,108910.0,0.75027211]
[1748390643307,0.47545672,108920.0,108910.0,0.73592816]
[1748390643503,0.47545672,108920.0,108910.0,0.75027214]
[1748390643910,0.47545672,108920.0,108910.0,0.69638497]
[1748390644208,0.47545672,108920.0,108910.0,1.057185]
[1748390644405,0.47545672,108920.0,108910.0,1.066485]
[1748390644800,0.47546116,108920.0,108910.0,1.05718484]
[1748390645202,0.47546116,108920.0,108910.0,1.05718488]
[1748390645611,0.47546116,108920.0,108910.0,1.05718484]
[1748390645913,0.44546116,108920.0,108910.0,0.98718484]
[1748390646110,0.45546116,108920.0,108910.0,1.10718484]
[1748390646311,0.45546116,108920.0,108910.0,1.10718485]
[1748390646495,0.45546116,108920.0,108910.0,0.74638485]
[1748390646702,0.45546116,108920.0,108910.0,0.32634486]
[1748390646901,0.45546116,108920.0,108910.0,0.7138251]
[1748390647107,0.45546116,108920.0,108910.0,0.69948102]
[1748390647312,0.45546116,108920.0,108910.0,0.71382502]
[1748390647612,0.45546116,108920.0,108910.0,0.713825]
[1748390648003,0.45546116,108920.0,108910.0,0.71382502]
[1748390648601,0.45546116,108920.0,108910.0,0.73188102]
[1748390648806,0.44546116,108920.0,108910.0,0.74622501]
[1748390649203,0.45546116,108920.0,108910.0,0.73188102]
[1748390649403,0.45546116,108920.0,108910.0,0.74622498]
[1748390649611,0.45546116,108920.0,108910.0,0.75622492]
[1748390649812,0.45548223,108920.0,108910.0,0.75622492]
[1748390650204,0.45548223,108920.0,108910.0,0.75622494]
[1748390650405,0.45548223,108920.0,108910.0,0.75622492]
[1748390650605,0.45548223,108920.0,108910.0,0.75622491]
[1748390650801,0.45548223,108920.0,108910.0,0.75622492]
[1748390651004,0.45548223,108920.0,108910.0,0.76552492]
[1748390651904,0.45548223,108920.0,108910.0,0.75118102]
[1748390652110,0.45548223,108920.0,108910.0,0.76552491]
[1748390652324,0.45548223,108920.0,108910.0,0.76552486]
[1748390652612,0.45548223,108920.0,108910.0,1.18021198]
[1748390652820,0.44548223,108920.0,108910.0,0.81941198]
[1748390653409,0.40682751,108920.0,108910.0,0.81941198]
[1748390653605,0.44547413,108920.0,108910.0,0.81941198]
[1748390654320,0.44547413,108920.0,108910.0,0.81941183]
[1748390655218,0.44547413,108920.0,108910.0,0.81941185]
[1748390655613,0.44547413,108920.0,108910.0,0.80506816]
[1748390656119,0.44547413,108920.0,108910.0,1.16586816]
[1748390656315,0.44547413,108920.0,108910.0,0.814445]
[1748390656716,0.44547413,108920.0,108910.0,0.77490156]
[1748390657015,0.44547413,108920.0,108910.0,0.77490159]
[1748390657221,0.44547413,108920.0,108910.0,0.814445]
[1748390657424,0.44547413,108920.0,108910.0,0.805145]
[1748390657911,0.44547413,108920.0,108910.0,0.81011185]
[1748390658223,0.44547413,108920.0,108910.0,0.75622471]
[1748390658522,0.44547413,108920.0,108910.0,0.74188102]
[1748390658706,0.44547413,108920.0,108910.0,0.75622483]
[1748390659219,0.44547413,108920.0,108910.0,0.76526899]
[1748390659420,0.44547413,108920.0,108910.0,0.81915613]
[1748390659618,0.44547413,108920.0,108910.0,0.81915599]
[1748390660123,0.44547413,108920.0,108910.0,0.81915613]
[1748390660523,0.44547413,108920.0,108910.0,0.96010501]
[1748390660721,0.44547413,108920.0,108910.0,0.96010489]
[1748390660915,0.44547413,108920.0,108910.0,0.86651831]
[1748390661110,0.44547413,108920.0,108910.0,0.87581843]
[1748390661512,0.44547413,108920.0,108910.0,0.86147462]
[1748390661715,0.44547413,108920.0,108910.0,0.87581837]
[1748390662224,0.44541942,108920.0,108910.0,0.87581887]
[1748390662424,0.44541942,108920.0,108910.0,0.87581893]
[1748390662628,0.44541942,108920.0,108910.0,0.86147512]
[1748390662923,0.39075673,108920.0,108910.0,1.47540851]
[1748390663129,0.39075673,108920.0,108910.0,1.52929565]
[1748390663328,0.39075673,108920.0,108910.0,1.50590816]
[1748390663926,0.39075673,108920.0,108910.0,1.10033134]
[1748390664225,0.39075673,108920.0,108910.0,1.61773135]
[1748390665223,0.39075673,108920.0,108910.0,1.61773136]
[1748390665426,0.35216482,108920.0,108910.0,1.65509416]
[1748390665727,0.27872482,108920.0,108910.0,1.65509416]
[1748390666618,0.27872482,108920.0,108910.0,1.46509416]
[1748390666819,0.27872482,108920.0,108910.0,1.46509418]
[1748390667025,0.27872482,108920.0,108910.0,1.45075096]
[1748390667929,0.27872482,108920.0,108910.0,1.54433754]
[1748390668121,0.27872482,108920.0,108910.0,1.45075096]
[1748390668326,0.27872482,108920.0,108910.0,1.46509417]
[1748390668728,0.27872482,108920.0,108910.0,1.45075096]
[1748390668923,0.27872482,108920.0,108910.0,1.4650942]
[1748390669129,0.27872482,108920.0,108910.0,1.46509418]
[1748390669830,0.27872482,108920.0,108910.0,1.46509419]
[1748390670920,0.27872482,108920.0,108910.0,1.46509418]
[1748390671122,0.27872482,108920.0,108910.0,1.46514875]
[1748390671730,0.27872482,108920.0,108910.0,0.64264875]
[1748390671928,1.06269722,108920.0,108910.0,1.01519172]
[1748390672120,1.06269722,108920.0,108910.0,0.96130458]
[1748390672327,1.06269722,108920.0,108910.0,0.94684102]
[1748390672532,1.06269722,108920.0,108910.0,0.96130516]
[1748390673034,1.06269722,108920.0,108910.0,0.96130515]
[1748390673527,1.06269722,108920.0,108910.0,0.42001842]
[1748390673734,1.06269722,108920.0,108910.0,0.83997842]
[1748390673932,1.06269722,108920.0,108910.0,0.83985842]
[1748390674131,1.06269722,108920.0,108910.0,0.83997842]
[1748390674431,1.00803453,108920.0,108910.0,0.23646622]
[1748390674732,1.06269722,108920.0,108910.0,0.83993842]
[1748390674920,1.06269722,108920.0,108910.0,0.83981905]
[1748390675120,1.06269722,108920.0,108910.0,0.83993905]
[1748390675317,1.02418751,108920.0,108910.0,0.83993905]
[1748390675523,1.06269431,108920.0,108910.0,0.83993905]
[1748390675718,1.06269431,108920.0,108910.0,0.83993921]
[1748390676129,1.06269431,108920.0,108910.0,0.83993917]
[1748390676337,1.06269431,108920.0,108910.0,0.83993913]
[1748390676541,1.06269431,108920.0,108910.0,0.8399391]
[1748390677428,1.06269431,108920.0,108910.0,0.82559429]
[1748390677631,1.06269431,108920.0,108910.0,0.83993909]
[1748390677831,1.06154241,108920.0,108910.0,0.83993909]
[1748390678031,1.06154241,108920.0,108910.0,0.65634689]
[1748390678231,1.06154241,108920.0,108910.0,0.83989922]
[1748390678434,1.06154241,108920.0,108910.0,0.83989923]
[1748390679227,1.06154241,108920.0,108910.0,0.83989921]
[1748390679728,1.06154699,108920.0,108910.0,0.83989921]
[1748390680039,1.06154699,108920.0,108910.0,0.83989923]
[1748390681733,1.06154699,108920.0,108910.0,0.82555429]
[1748390681930,1.06154699,108920.0,108910.0,0.83989924]
[1748390682829,1.06154699,108920.0,108910.0,0.88731022]
[1748390683029,1.06154699,108920.0,108910.0,0.23646705]
[1748390683230,1.10437224,108920.0,108910.0,0.23646705]
[1748390683429,1.10437224,108920.0,108910.0,0.65622705]
[1748390683637,1.10437224,108920.0,108910.0,0.65634705]
[1748390683833,1.10437224,108920.0,108910.0,0.6563476]
[1748390683834,1.02303561,108920.0,108910.0,0.6563476]
[1748390684035,1.10433632,108920.0,108910.0,0.2364676]
[1748390684230,1.10433632,108920.0,108910.0,0.1389476]
[1748390684441,1.10433632,108920.0,108910.0,0.11326076]
[1748390684442,1.25310829,108920.0,108910.0,0.11326076]
[1748390684644,1.29611759,108920.0,108910.0,0.01358076]
[1748390685141,1.29611759,108920.0,108910.0,0.01750742]
[1748390685529,1.29611759,108920.0,108910.0,0.01739086]
[1748390685726,1.29611759,108920.0,108910.0,0.01750842]
[1748390686445,1.21129239,108920.0,108910.0,0.01850842]
[1748390686641,1.21029239,108920.0,108910.0,0.01850842]
[1748390686840,1.21229239,108920.0,108910.0,0.01950842]
[1748390687232,1.21229239,108920.0,108910.0,0.01950073]
[1748390687427,1.21229239,108920.0,108910.0,0.00660209]
[1748390687831,1.21229239,108920.0,108910.0,0.01954529]
[1748390688028,1.21226236,108920.0,108910.0,0.01954529]
[1748390688629,1.21226236,108920.0,108910.0,9e-08]
[1748390688832,1.29808756,108920.0,108910.0,9e-08]
[1748390689030,0.1835522,108910.0,108900.0,0.10137739]
[1748390689233,1.60292522,108910.0,108900.0,0.14137739]
[1748390689634,1.60292522,108910.0,108900.0,0.10137739]
[1748390689851,1.60292522,108910.0,108900.0,0.10149739]
[1748390690047,1.60288908,108910.0,108900.0,0.10149739]
[1748390690238,1.60388908,108910.0,108900.0,0.10149739]
[1748390690445,1.60488908,108910.0,108900.0,0.10149739]
[1748390692438,1.60483188,108910.0,108900.0,0.10149739]
[1748390692842,1.60483188,108910.0,108900.0,0.10012]
[1748390693844,1.60483188,108910.0,108900.0,0.1]
[1748390694045,1.60483188,108910.0,108900.0,0.10012]
[1748390695639,1.08743188,108910.0,108900.0,0.10012]
[1748390695845,1.18495188,108910.0,108900.0,0.10012]
[1748390696040,1.56220052,108910.0,108900.0,0.13112]
[1748390696448,1.56220052,108910.0,108900.0,0.10012]
[1748390696655,0.23823179,108900.0,108890.0,0.3695654]
[1748390696850,0.61073179,108900.0,108890.0,0.5554616]
[1748390697854,0.61173179,108900.0,108890.0,0.5574616]
[1748390698249,0.61173179,108900.0,108890.0,0.9182616]
[1748390699542,0.61273179,108900.0,108890.0,0.9192616]
[1748390699939,0.65114848,108900.0,108890.0,0.5584616]
[1748390700152,1.01194848,108900.0,108890.0,0.5584616]
[1748390700353,0.65114848,108900.0,108890.0,0.5584616]
[1748390700655,0.97353179,108900.0,108890.0,0.52535796]
[1748390700957,1.01195154,108900.0,108890.0,0.52536883]
[1748390701750,1.01195154,108900.0,108890.0,0.52537207]
[1748390702146,1.01195154,108900.0,108890.0,0.47947587]
[1748390702346,1.01195154,108900.0,108890.0,0.4666692]
[1748390702662,1.01195154,108900.0,108890.0,0.47947981]
[1748390702861,1.01195154,108900.0,108890.0,0.47947999]
[1748390703555,0.97353179,108900.0,108890.0,0.47947999]
[1748390703758,1.01188513,108900.0,108890.0,0.47947999]
[1748390704551,1.01188513,108900.0,108890.0,0.48396208]
[1748390704754,1.01188513,108900.0,108890.0,0.31979298]
[1748390704950,1.01188513,108900.0,108890.0,0.50336695]
[1748390705547,1.01188513,108900.0,108890.0,0.50337078]
[1748390706757,1.01188513,108900.0,108890.0,0.50337201]
[1748390707259,1.01188513,108900.0,108890.0,0.50337295]
[1748390707561,1.01188513,108900.0,108890.0,0.50337296]
[1748390707760,1.01188513,108900.0,108890.0,0.50338138]
[1748390707960,1.01188513,108900.0,108890.0,0.50338473]
[1748390708647,1.01188513,108900.0,108890.0,0.51760121]
[1748390708849,1.01188513,108900.0,108890.0,0.5176012]
[1748390709258,1.01188513,108900.0,108890.0,0.50338835]
[1748390709456,1.01188513,108900.0,108890.0,0.5033895]
[1748390709659,1.01188513,108900.0,108890.0,0.5176175]
[1748390709961,1.01188513,108900.0,108890.0,0.51761673]
[1748390710156,1.01188513,108900.0,108890.0,0.51761817]
[1748390710354,1.01188513,108900.0,108890.0,0.45231876]
[1748390711865,1.01188513,108900.0,108890.0,0.17466256]
[1748390712057,1.01188513,108900.0,108890.0,0.17467085]
[1748390712259,1.05466411,108900.0,108890.0,0.17467085]
[1748390712963,1.05466411,108900.0,108890.0,0.17481549]
[1748390713666,1.05466411,108900.0,108890.0,0.16183175]
[1748390713969,1.11162008,108900.0,108890.0,0.16183175]
[1748390714356,1.11162008,108900.0,108890.0,0.16171175]
[1748390714665,1.11162008,108900.0,108890.0,0.16183175]
[1748390714866,1.11162008,108900.0,108890.0,0.16180998]
[1748390715065,1.11165297,108900.0,108890.0,0.16180998]
[1748390715266,1.06888213,108900.0,108890.0,0.14760209]
[1748390715461,1.06888213,108900.0,108890.0,0.16181017]
[1748390715858,1.06888213,108900.0,108890.0,0.16180846]
[1748390716258,1.0689081,108900.0,108890.0,0.16180846]
[1748390717462,1.0689081,108900.0,108890.0,0.14760209]
[1748390717661,1.0689081,108900.0,108890.0,0.16180605]
[1748390717972,1.0689081,108900.0,108890.0,0.14760209]
[1748390718172,1.11166956,108900.0,108890.0,0.14760209]
[1748390718468,1.0689081,108900.0,108890.0,0.14760209]
[1748390718971,1.0709081,108900.0,108890.0,0.14560209]
[1748390719376,1.0699081,108900.0,108890.0,0.14460209]
[1748390719671,1.11566684,108900.0,108890.0,0.14560209]
[1748390719878,1.0729081,108900.0,108890.0,0.14560209]
[1748390720175,1.11566168,108900.0,108890.0,0.14560209]
[1748390720566,1.63255908,108900.0,108890.0,0.14560209]
[1748390723270,1.58980647,108900.0,108890.0,0.01840155]
[1748390723466,1.58980647,108900.0,108890.0,0.01828155]
[1748390723770,1.58980647,108900.0,108890.0,2e-08]
[1748390724164,1.58980647,108900.0,108870.0,0.0414538]
[1748390724165,0.1836025,108880.0,108870.0,0.0414538]
[1748390724367,1.81035497,108880.0,108870.0,0.07087848]
[1748390724561,1.48573209,108880.0,108870.0,0.25449788]
[1748390724772,1.08220231,108880.0,108870.0,0.16837848]
[1748390724968,1.08220231,108880.0,108870.0,0.18250733]
[1748390725171,1.08220231,108880.0,108870.0,0.18250741]
[1748390725476,1.08320231,108880.0,108870.0,0.18350741]
[1748390725676,1.08420231,108880.0,108870.0,0.36812681]
[1748390725980,1.08420231,108880.0,108870.0,0.36812449]
[1748390726180,0.69070231,108880.0,108870.0,0.36812449]
[1748390726364,0.69070231,108880.0,108870.0,0.40865981]
[1748390726569,0.65196519,108880.0,108870.0,0.3935332]
[1748390726779,0.65596519,108880.0,108870.0,0.40765874]
[1748390727385,0.69364163,108880.0,108870.0,0.40765874]
[1748390727566,0.72614163,108880.0,108870.0,0.40765874]
[1748390728179,0.72814163,108880.0,108870.0,0.40665874]
[1748390728771,0.72814075,108880.0,108870.0,0.40665874]
[1748390728978,0.73508933,108880.0,108870.0,0.40665874]
[1748390729275,1.09188933,108880.0,108870.0,0.40665796]
[1748390729480,1.09388933,108880.0,108870.0,0.40665796]
[1748390730169,1.09388933,108880.0,108870.0,0.36612264]
[1748390730676,1.09388933,108880.0,108870.0,0.36612317]
[1748390731071,1.09388933,108880.0,108870.0,0.40665822]
[1748390731867,1.09388933,108880.0,108870.0,0.1825035]
[1748390732680,1.09388933,108880.0,108870.0,0.16837848]
[1748390732881,1.09388933,108880.0,108870.0,0.1825041]
[1748390733086,1.09388907,108880.0,108870.0,0.1825041]
[1748390733874,1.09388907,108880.0,108870.0,0.16837848]
[1748390734081,1.09388907,108880.0,108870.0,0.18250453]
[1748390734281,1.09388907,108880.0,108870.0,0.18250452]
[1748390734887,1.09388907,108880.0,108870.0,0.18698661]
[1748390735079,1.09388907,108880.0,108870.0,0.12248661]
[1748390735272,1.09388907,108880.0,108870.0,0.12260661]
[1748390736274,1.09388907,108880.0,108870.0,0.10848057]
[1748390736275,1.03922638,108880.0,108870.0,0.10848057]
[1748390736581,1.09388907,108880.0,108870.0,0.10848057]
[1748390736781,1.09388907,108880.0,108870.0,0.12260982]
[1748390736987,1.09388907,108880.0,108870.0,0.13542856]
[1748390737386,1.09388907,108880.0,108870.0,0.13540671]
[1748390737586,1.03922638,108880.0,108870.0,0.10240671]
[1748390737784,1.09388907,108880.0,108870.0,0.10240671]
[1748390737977,1.09388907,108880.0,108870.0,0.10240839]
[1748390738181,1.09388907,108880.0,108870.0,0.08961168]
[1748390738475,1.09388907,108880.0,108870.0,0.10244535]
[1748390738677,1.13660914,108880.0,108870.0,0.10244545]
[1748390738877,1.13660914,108880.0,108870.0,0.10232545]
[1748390739079,1.19356511,108880.0,108870.0,0.10244545]
[1748390739280,1.19356511,108880.0,108870.0,0.07548057]
[1748390739480,1.19356511,108880.0,108870.0,0.10253861]
[1748390740180,1.19356511,108880.0,108870.0,0.10262151]
[1748390740382,1.19356511,108880.0,108870.0,0.08957641]
[1748390740577,1.19356511,108880.0,108870.0,0.10262322]
[1748390740786,1.61356511,108880.0,108870.0,0.10262279]
[1748390741980,1.61356511,108880.0,108870.0,0.13512279]
[1748390742291,1.61356511,108880.0,108870.0,0.13501037]
[1748390743196,1.61356511,108880.0,108870.0,0.13501021]
[1748390743399,1.61356511,108880.0,108870.0,0.13500939]
[1748390743584,1.61356511,108880.0,108870.0,0.13500976]
[1748390743784,1.55660914,108880.0,108870.0,0.13500976]
[1748390744788,1.55660914,108880.0,108870.0,0.13498147]
[1748390744990,1.55660914,108880.0,108870.0,0.13498215]
[1748390745189,1.55660914,108880.0,108870.0,0.13498331]
[1748390745396,1.55660914,108880.0,108870.0,0.13497896]
[1748390745792,1.55662358,108880.0,108870.0,0.13497896]
[1748390746298,1.55662358,108880.0,108870.0,0.13498698]
[1748390746494,1.55662358,108880.0,108870.0,0.12207482]
[1748390747094,1.55662358,108880.0,108870.0,0.10798057]
[1748390747298,1.55662358,108880.0,108870.0,0.13498681]
[1748390747604,1.55662358,108880.0,108870.0,0.13498689]
[1748390747900,1.13662358,108880.0,108870.0,0.13498689]
[1748390748092,1.13662358,108880.0,108870.0,0.13498722]
[1748390748296,1.55666358,108880.0,108870.0,0.13498722]
[1748390748791,1.55666358,108880.0,108870.0,0.12089256]
[1748390748991,1.55666358,108880.0,108870.0,0.13498781]
[1748390749190,1.61361955,108880.0,108870.0,0.13498781]
[1748390749914,1.61361955,108880.0,108870.0,0.12089256]
[1748390750100,1.53320974,108880.0,108870.0,0.1349951]
[1748390750395,1.13662973,108880.0,108870.0,0.13498603]
[1748390750795,1.13662973,108880.0,108870.0,0.20088603]
[1748390751294,1.13662973,108880.0,108870.0,0.38450333]
[1748390751499,1.13662973,108880.0,108870.0,0.20088703]
[1748390751894,1.13662973,108880.0,108870.0,0.18678994]
[1748390752095,1.13662973,108880.0,108870.0,0.20088781]
[1748390752705,1.13662973,108880.0,108870.0,0.20083147]
[1748390753492,1.13662973,108880.0,108870.0,0.20083239]
[1748390753693,1.13662973,108880.0,108870.0,0.18673413]
[1748390753897,1.13662973,108880.0,108870.0,0.20083379]
[1748390755205,1.13662973,108880.0,108870.0,0.20080897]
[1748390756699,1.13662973,108880.0,108870.0,0.20081197]
[1748390757102,1.13662973,108880.0,108870.0,0.18671156]
[1748390757303,1.13662973,108880.0,108870.0,0.20081196]
[1748390757816,1.13662973,108880.0,108870.0,0.20081342]
[1748390758603,1.13662973,108880.0,108870.0,0.13491387]
[1748390759492,1.13662973,108880.0,108870.0,0.13491355]
[1748390759904,1.13662973,108880.0,108870.0,0.13491406]
[1748390760106,1.13662973,108880.0,108870.0,0.13492739]
[1748390760304,1.13662973,108880.0,108870.0,0.16591442]
[1748390760504,1.13662973,108880.0,108870.0,0.34953172]
[1748390760699,1.09389873,108880.0,108870.0,0.36700049]
[1748390760898,1.09389873,108880.0,108870.0,0.22391851]
[1748390761204,1.09389873,108880.0,108870.0,0.40753581]
[1748390761511,0.63699948,108880.0,108870.0,0.40753581]
[1748390761803,0.5683025,108880.0,108870.0,0.40753581]
[1748390762002,0.5366025,108880.0,108870.0,0.36700049]
[1748390762199,0.5366025,108880.0,108870.0,0.40752845]
[1748390762394,0.5366025,108880.0,108870.0,0.50508845]
[1748390762704,0.5366025,108880.0,108870.0,0.47462302]
[1748390763005,0.352,108880.0,108870.0,0.76351016]
[1748390763204,0.5356004,108880.0,108870.0,1.23205989]
[1748390763414,0.5356004,108880.0,108870.0,1.23205597]
[1748390764300,0.5356004,108880.0,108870.0,1.23205057]
[1748390764699,0.5356004,108880.0,108870.0,1.23204547]
[1748390765404,0.5356004,108880.0,108870.0,1.18429573]
[1748390765613,0.5356004,108880.0,108870.0,1.2320017]
[1748390765811,0.5356004,108880.0,108870.0,1.23200162]
[1748390767113,0.5356004,108880.0,108870.0,1.21791776]
[1748390767413,0.5356004,108880.0,108870.0,1.23199803]
[1748390767709,0.5356004,108880.0,108870.0,1.21791776]
[1748390767912,0.5356004,108880.0,108870.0,1.23199803]
[1748390768415,0.5683004,108880.0,108870.0,1.64289484]
[1748390768709,0.6003004,108880.0,108870.0,1.64289484]
[1748390769309,0.6003004,108880.0,108870.0,1.64277198]
[1748390769502,0.6003004,108880.0,108870.0,1.64277199]
[1748390769810,0.6003004,108880.0,108870.0,1.65195049]
[1748390769994,0.9611004,108880.0,108870.0,0.58083469]
[1748390770201,0.9611004,108880.0,108870.0,0.33364593]
[1748390770396,1.05330739,108880.0,108870.0,0.07108999]
[1748390770600,1.05330739,108880.0,108870.0,0.05701323]
[1748390770814,1.05330739,108880.0,108870.0,0.07113211]
[1748390771008,1.05330739,108880.0,108870.0,0.07111975]
[1748390771202,1.05330739,108880.0,108870.0,0.07123975]
[1748390772018,1.05330739,108880.0,108870.0,0.07123996]
[1748390772201,1.05330739,108880.0,108870.0,0.04424027]
[1748390772426,1.05330739,108880.0,108870.0,0.05714944]
[1748390772611,1.05330739,108880.0,108870.0,0.05708534]
[1748390772805,1.05330739,108880.0,108870.0,0.05708453]
[1748390772806,1.05630739,108880.0,108870.0,0.05708453]
[1748390773005,1.05930739,108880.0,108870.0,0.04424027]
[1748390773311,1.05930739,108880.0,108870.0,0.05708551]
[1748390773518,1.05930739,108880.0,108870.0,0.04424027]
[1748390773722,1.05930739,108880.0,108870.0,0.05708556]
[1748390774315,1.05930739,108880.0,108870.0,0.05708161]
[1748390774619,0.69850739,108880.0,108870.0,0.24069911]
[1748390774920,1.05930739,108880.0,108870.0,0.05702973]
[1748390775111,1.05930739,108880.0,108870.0,0.04424027]
[1748390776415,1.05930739,108880.0,108870.0,0.05705727]
[1748390777003,1.05930739,108880.0,108870.0,0.04424027]
[1748390777312,1.05930739,108880.0,108870.0,0.05700946]
[1748390778315,1.05932296,108880.0,108870.0,0.05701424]
[1748390778619,1.05932296,108880.0,108870.0,0.05703942]
[1748390780415,1.05932296,108880.0,108870.0,0.05707571]
[1748390781317,1.05932296,108880.0,108870.0,0.05707733]
[1748390781708,1.05932296,108880.0,108870.0,0.05709193]
[1748390782412,1.02176309,108880.0,108870.0,0.04424027]
[1748390782714,1.05932415,108880.0,108870.0,0.05709542]
[1748390783813,1.05932415,108880.0,108870.0,0.05709545]
[1748390786115,1.05932415,108880.0,108870.0,0.05709561]
[1748390786623,1.02176309,108880.0,108870.0,0.05709561]
[1748390786923,1.05932104,108880.0,108870.0,0.05709561]
[1748390787441,1.05932104,108880.0,108870.0,0.04424027]
[1748390787728,1.05932104,108880.0,108870.0,0.05709547]
[1748390788026,1.08952104,108880.0,108870.0,0.05709547]
[1748390788231,1.08952104,108880.0,108870.0,0.05709545]
[1748390788727,1.08952104,108880.0,108870.0,0.04424027]
[1748390788929,1.08952104,108880.0,108870.0,0.05709455]
[1748390789227,1.08952104,108880.0,108870.0,0.05709454]
[1748390789527,1.08952104,108880.0,108870.0,0.05709386]
[1748390790414,1.08952104,108880.0,108870.0,0.05709431]
[1748390790622,1.08952104,108880.0,108870.0,0.05709472]
[1748390791132,1.450321,108880.0,108870.0,0.05709472]
[1748390791931,1.450321,108880.0,108870.0,0.05709484]
[1748390792231,1.450321,108880.0,108870.0,0.05709315]
[1748390792730,1.450321,108880.0,108870.0,0.05709621]
[1748390793325,1.450321,108880.0,108870.0,0.05709484]
[1748390794128,1.450321,108880.0,108870.0,0.05709953]
[1748390794939,1.450321,108880.0,108870.0,0.05710273]
[1748390795122,1.450321,108880.0,108870.0,0.05710272]
[1748390795530,1.45034649,108880.0,108870.0,0.05710272]
[1748390796432,1.45034649,108880.0,108870.0,0.07634027]
[1748390796620,1.45034649,108880.0,108870.0,0.08915842]
[1748390797020,1.45034649,108880.0,108870.0,0.05705842]
[1748390797227,1.49305384,108880.0,108870.0,0.05705842]
[1748390797423,1.49305384,108880.0,108870.0,0.05705419]
[1748390797627,1.45034649,108880.0,108870.0,0.05705419]
[1748390798026,1.49305384,108880.0,108870.0,0.05705419]
[1748390798229,1.49305384,108880.0,108870.0,0.04424027]
[1748390798531,1.49305384,108880.0,108870.0,0.05705452]
[1748390799126,1.49305384,108880.0,108870.0,0.05706498]
[1748390799326,1.49305384,108880.0,108870.0,0.08866498]
[1748390799826,1.49316809,108880.0,108870.0,0.08866498]
[1748390800119,1.55012406,108880.0,108870.0,0.13649223]
[1748390800325,1.55012406,108880.0,108870.0,0.17694113]
[1748390800527,1.55012406,108880.0,108870.0,0.12366738]
[1748390801835,1.55012406,108880.0,108870.0,0.12354738]
[1748390802727,1.55012406,108880.0,108870.0,0.16399628]
[1748390802932,1.55012406,108880.0,108870.0,0.07572027]
[1748390804131,1.55012406,108880.0,108870.0,0.08456917]
[1748390804339,1.54938264,108880.0,108870.0,0.00560209]
[1748390807930,1.54938264,108880.0,108870.0,0.04605099]
[1748390808136,1.54938264,108880.0,108870.0,0.08895099]
[1748390808528,1.54927778,108880.0,108870.0,0.08895099]
[1748390808934,1.49232181,108880.0,108870.0,0.15175099]
[1748390809128,1.54927778,108880.0,108870.0,0.15175099]
[1748390810437,1.46971906,108880.0,108870.0,0.15175099]
[1748390811133,1.41276309,108880.0,108870.0,0.15175099]
[1748390811641,1.41276309,108880.0,108870.0,0.11130209]
[1748390811839,1.49229291,108880.0,108870.0,0.15188307]
[1748390812029,1.45556851,108880.0,108870.0,0.15188307]
[1748390812230,1.49229332,108880.0,108870.0,0.15188307]
[1748390812434,1.54936697,108880.0,108870.0,0.15188307]
[1748390812731,1.54936697,108880.0,108870.0,0.19971189]
[1748390814638,1.49229337,108880.0,108870.0,0.19971189]
[1748390814842,1.54936697,108880.0,108870.0,0.19971189]
[1748390815047,1.54936814,108880.0,108870.0,0.19971142]
[1748390816740,1.54936814,108880.0,108870.0,0.38332872]
[1748390816741,1.43763185,108880.0,108870.0,0.38332872]